bitfinex-derivatives/quotes_BTCF0:USTF0_20250803
["timestamp","ask_amount","ask_price","bid_price","bid_amount"]
[1754186885979,0.2702909,113410.0,113400.0,0.79599472]
[1754186886581,0.0939,113410.0,113400.0,0.79599472]
[1754186887776,0.02296,113410.0,113400.0,0.79599472]
[1754186887972,0.02296,113410.0,113400.0,1.15679472]
[1754186888884,0.05569,113410.0,113400.0,1.15679472]
[1754186889692,0.2320809,113410.0,113400.0,1.15679472]
[1754186891186,0.2320809,113410.0,113400.0,0.9000066]
[1754186891382,0.2320809,113410.0,113400.0,1.15679472]
[1754186893784,0.2320809,113410.0,113400.0,1.15779472]
[1754186894388,0.2320809,113410.0,113400.0,1.15679472]
[1754186894590,0.2320809,113410.0,113400.0,1.15879472]
[1754186895987,0.05569,113410.0,113400.0,1.15879472]
[1754186896187,0.02296,113410.0,113400.0,1.15879472]
[1754186901693,0.1993508,113410.0,113400.0,1.15879472]
[1754186903486,0.2320808,113410.0,113400.0,1.15879472]
[1754186903993,0.1993508,113410.0,113400.0,1.15879472]
[1754186904189,0.1993508,113410.0,113400.0,0.9020065]
[1754186904190,0.2913308,113410.0,113400.0,0.9020065]
[1754186904394,0.54811892,113410.0,113400.0,0.004]
[1754186904598,0.56959109,113410.0,113400.0,0.004]
[1754186905192,0.56959109,113410.0,113400.0,0.003]
[1754186905496,0.56959109,113410.0,113400.0,0.001]
[1754186905893,0.2124965,113400.0,113390.0,0.88220682]
[1754186906098,0.31402867,113400.0,113390.0,0.88220682]
[1754186906598,0.31402867,113400.0,113390.0,0.6254187]
[1754186907302,0.2925565,113400.0,113390.0,0.6254187]
[1754186908403,0.2925565,113400.0,113390.0,0.6264187]
[1754186908794,0.31400958,113400.0,113390.0,0.6264187]
[1754186909294,0.31400958,113400.0,113390.0,0.6274187]
[1754186909496,0.2925565,113400.0,113390.0,0.6274187]
[1754186909694,0.2925565,113400.0,113390.0,0.5833137]
[1754186909894,0.57079487,113400.0,113390.0,0.002]
[1754186910198,0.93159487,113400.0,113390.0,0.002]
[1754186911214,0.2929622,113390.0,113380.0,0.3608]
[1754186911498,0.2929778,113380.0,113370.0,0.5392534]
[1754186911801,0.2929778,113380.0,113370.0,0.5424634]
[1754186912203,0.2929778,113380.0,113370.0,0.79925152]
[1754186912509,0.2899778,113380.0,113370.0,0.79925152]
[1754186913000,0.2899778,113380.0,113370.0,0.80225152]
[1754186913398,0.2899778,113380.0,113370.0,0.80425152]
[1754186915498,0.04752,113380.0,113370.0,0.80425152]
[1754186915698,0.243389,113390.0,113380.0,0.1816476]
[1754186915898,0.243389,113390.0,113380.0,0.79923572]
[1754186916201,0.337079,113390.0,113380.0,0.79923572]
[1754186916401,0.2929729,113390.0,113380.0,0.79923572]
[1754186916801,0.2929729,113390.0,113380.0,0.80023572]
[1754186917202,0.1992829,113390.0,113380.0,0.80023572]
[1754186919006,0.1992829,113390.0,113380.0,0.5434476]
[1754186919199,0.1992829,113390.0,113380.0,0.80023572]
[1754186919505,0.1992829,113390.0,113380.0,0.5434476]
[1754186919694,0.1992829,113390.0,113380.0,0.80023572]
[1754186922307,0.2929729,113390.0,113380.0,0.80023572]
[1754186923607,0.1992829,113390.0,113380.0,0.80023572]
[1754186924309,0.2328829,113390.0,113380.0,0.80023572]
[1754186924602,0.2713929,113390.0,113380.0,0.80023572]
[1754186925608,0.2929729,113390.0,113380.0,0.80023572]
[1754186927608,0.2929729,113390.0,113380.0,0.43943572]
[1754186927806,0.1992721,113390.0,113380.0,0.80023572]
[1754186928000,0.02285,113390.0,113380.0,0.80023572]
[1754186928405,0.1992721,113390.0,113380.0,0.80023572]
[1754186928706,0.02285,113390.0,113380.0,0.80023572]
[1754186929109,0.1992721,113390.0,113380.0,0.80023572]
[1754186929609,0.2239421,113390.0,113380.0,0.80023572]
[1754186929910,0.2713821,113390.0,113380.0,0.80023572]
[1754186930105,0.2929621,113390.0,113380.0,0.80023572]
[1754186938712,0.11654,113390.0,113380.0,0.80023572]
[1754186938914,0.292962,113390.0,113380.0,0.80023572]
[1754186940413,0.292962,113390.0,113380.0,0.5434476]
[1754186940612,0.292962,113390.0,113380.0,0.80023572]
[1754186941811,0.292962,113390.0,113380.0,0.5434476]
[1754186942011,0.292962,113390.0,113380.0,0.80023572]
[1754186942612,0.04752,113390.0,113380.0,0.80023572]
[1754186942811,0.02285,113390.0,113380.0,0.80023572]
[1754186944512,0.1997081,113400.0,113390.0,0.1816322]
[1754186944717,0.1997081,113400.0,113390.0,0.79922032]
[1754186945516,0.2743281,113400.0,113390.0,0.79922032]
[1754186945813,0.2979481,113400.0,113390.0,0.79922032]
[1754186946414,0.07339,113400.0,113390.0,0.79922032]
[1754186946614,0.02429,113400.0,113390.0,0.79922032]
[1754186948615,0.2753165,113400.0,113390.0,0.79922032]
[1754186948921,0.2979365,113400.0,113390.0,0.79922032]
[1754186949121,0.12153,113400.0,113390.0,0.79922032]
[1754186956428,0.2979365,113400.0,113390.0,0.79922032]
[1754186957728,0.12153,113400.0,113390.0,0.79922032]
[1754186959033,0.2979365,113400.0,113390.0,0.79922032]
[1754186959931,0.2979365,113400.0,113390.0,0.5404322]
[1754186960233,0.2979365,113400.0,113390.0,0.5424322]
[1754186961837,0.2979365,113400.0,113390.0,0.79922032]
[1754186963235,0.2979365,113400.0,113390.0,0.5424322]
[1754186974655,0.2979365,113400.0,113390.0,0.1816322]
[1754186974857,0.2979365,113400.0,113390.0,0.83144523]
[1754186974858,0.58694953,113400.0,113390.0,0.83144523]
[1754186977660,0.58694953,113400.0,113390.0,0.5424322]
[1754186978161,0.58694953,113400.0,113390.0,0.83144523]
[1754186978553,0.2979365,113400.0,113390.0,0.83144523]
[1754186978753,0.58694953,113400.0,113390.0,0.5424322]
[1754186978954,0.58694953,113400.0,113390.0,0.83144523]
[1754186979958,0.58694953,113400.0,113390.0,0.47064523]
[1754186983661,0.59596393,113400.0,113390.0,0.47064523]
[1754186983960,0.59596393,113400.0,113390.0,0.1816322]
[1754186984161,0.59596393,113400.0,113390.0,0.47064523]
[1754186986163,0.58694953,113400.0,113390.0,0.47064523]
[1754186988660,0.2979365,113400.0,113390.0,0.47064523]
[1754186988861,0.58694953,113400.0,113390.0,0.47064523]
[1754186989256,0.58694953,113400.0,113390.0,0.1816322]
[1754186989763,0.58694953,113400.0,113390.0,0.47064523]
[1754186990552,0.94774953,113400.0,113390.0,0.47064523]
[1754186990762,0.58694953,113400.0,113390.0,0.47064523]
[1754186995468,0.2979365,113400.0,113390.0,0.83144523]
[1754186995669,0.58694953,113400.0,113390.0,0.47064523]
[1754186997068,0.58694953,113400.0,113390.0,0.83144523]
[1754187000378,0.2979365,113400.0,113390.0,0.83144523]
[1754187000580,0.58694953,113400.0,113390.0,0.83144523]
[1754187000769,0.58694953,113400.0,113390.0,0.1764222]
[1754187001076,0.58694953,113400.0,113390.0,0.5424322]
[1754187001473,0.58694953,113400.0,113390.0,0.83144523]
[1754187003780,0.58694953,113400.0,113390.0,0.5424322]
[1754187004168,0.58694953,113400.0,113390.0,0.83144523]
[1754187006381,0.58694953,113400.0,113390.0,0.5424322]
[1754187006580,0.58694953,113400.0,113390.0,0.83144523]
[1754187012081,0.2979365,113400.0,113390.0,0.83144523]
[1754187012273,0.58694953,113400.0,113390.0,0.83144523]
[1754187012986,0.58694953,113400.0,113390.0,0.5424322]
[1754187013186,0.58694953,113400.0,113390.0,0.83144523]
[1754187015287,0.2979365,113400.0,113390.0,0.83144523]
[1754187015886,0.58694953,113400.0,113390.0,0.83144523]
[1754187016891,0.2979365,113400.0,113390.0,0.83144523]
[1754187018998,0.58694953,113400.0,113390.0,0.83144523]
[1754187022798,0.2979365,113400.0,113390.0,0.83144523]
[1754187025599,0.58694953,113400.0,113390.0,0.83144523]
[1754187027193,0.58694953,113400.0,113390.0,0.5424322]
[1754187027504,0.58694953,113400.0,113390.0,0.83144523]
[1754187032317,0.58694953,113400.0,113390.0,0.5424322]
[1754187032515,0.58694953,113400.0,113390.0,0.83144523]
[1754187036011,0.2979365,113400.0,113390.0,0.83144523]
[1754187036214,0.58694953,113400.0,113390.0,0.83144523]
[1754187041221,0.58694953,113400.0,113390.0,0.5424322]
[1754187041422,0.58694953,113400.0,113390.0,0.83144523]
[1754187042221,0.2979365,113400.0,113390.0,0.83144523]
[1754187042821,0.58694953,113400.0,113390.0,0.83144523]
[1754187044134,0.58694953,113400.0,113390.0,0.5424322]
[1754187044422,0.58694953,113400.0,113390.0,0.83144523]
[1754187044718,0.2979365,113400.0,113390.0,0.83144523]
[1754187044912,0.58694953,113400.0,113390.0,0.83144523]
[1754187046327,0.2979365,113400.0,113390.0,0.83144523]
[1754187046825,0.58694953,113400.0,113390.0,0.83144523]
[1754187047018,0.2979365,113400.0,113390.0,0.83144523]
[1754187047219,0.58694953,113400.0,113390.0,0.83144523]
[1754187048026,0.58694953,113400.0,113390.0,0.5424322]
[1754187048222,0.58694953,113400.0,113390.0,0.83144523]
[1754187049228,0.2979365,113400.0,113390.0,0.83144523]
[1754187049429,0.58694953,113400.0,113390.0,0.83144523]
[1754187054329,0.2979365,113400.0,113390.0,0.83144523]
[1754187054525,0.58694953,113400.0,113390.0,0.83144523]
[1754187055320,0.2979365,113400.0,113390.0,0.83144523]
[1754187055520,0.58694953,113400.0,113390.0,0.83144523]
[1754187059823,0.2979365,113400.0,113390.0,0.83144523]
[1754187060029,0.58694953,113400.0,113390.0,0.83144523]
[1754187061529,0.2979365,113400.0,113390.0,0.83144523]
[1754187062229,0.001,113400.0,113390.0,1.48125826]
[1754187065823,0.02333,113410.0,113400.0,0.1796166]
[1754187066030,0.02333,113410.0,113400.0,1.12044266]
[1754187068029,0.04861,113420.0,113410.0,0.1816011]
[1754187068233,0.06321,113420.0,113410.0,0.83141413]
[1754187068439,0.11809,113420.0,113410.0,0.83141413]
[1754187068632,0.11809,113420.0,113410.0,0.5424011]
[1754187068826,0.11809,113420.0,113410.0,0.84037922]
[1754187069226,0.11809,113420.0,113410.0,0.9092641]
[1754187070036,0.2944656,113420.0,113410.0,0.9092641]
[1754187070540,0.2007056,113420.0,113410.0,0.9092641]
[1754187070930,0.2954656,113420.0,113410.0,0.9092641]
[1754187076443,0.2954656,113420.0,113410.0,0.62025107]
[1754187076645,0.2954656,113420.0,113410.0,0.9092641]
[1754187077644,0.11909,113420.0,113410.0,0.9092641]
[1754187077842,0.2954654,113420.0,113410.0,0.9092641]
[1754187079142,0.001,113420.0,113410.0,0.9092641]
[1754187079347,0.02433,113420.0,113410.0,0.9092641]
[1754187083741,0.2007056,113420.0,113410.0,0.9092641]
[1754187084641,0.02433,113420.0,113410.0,0.9092641]
[1754187088446,0.001,113420.0,113410.0,0.9092641]
[1754187090748,0.02457,113420.0,113410.0,0.9092641]
[1754187101559,0.001,113420.0,113410.0,0.9092641]
[1754187101759,0.001,113420.0,113410.0,1.19827713]
[1754187102356,0.001,113420.0,113410.0,1.27698596]
[1754187102762,0.05627,113440.0,113430.0,0.2671468]
[1754187102960,0.12003,113440.0,113430.0,1.56677286]
[1754187104061,0.12203,113440.0,113430.0,1.56677286]
[1754187104560,0.2983743,113440.0,113430.0,1.56677286]
[1754187104760,0.12203,113440.0,113430.0,1.56677286]
[1754187105061,0.12303,113440.0,113430.0,1.56677286]
[1754187105858,0.07578,113440.0,113430.0,1.56677286]
[1754187106059,0.10883,113440.0,113430.0,1.56677286]
[1754187106260,0.12303,113440.0,113430.0,1.56677286]
[1754187111366,0.2993743,113440.0,113430.0,1.56677286]
[1754187112067,0.12303,113440.0,113430.0,1.56677286]
[1754187112271,0.02357,113470.0,113460.0,0.3085422]
[1754187112567,0.2471177,113470.0,113460.0,1.60816826]
[1754187112971,0.2963277,113470.0,113460.0,1.60816826]
[1754187113170,0.2963277,113470.0,113460.0,1.0301422]
[1754187113372,0.2983277,113470.0,113460.0,1.56409046]
[1754187113866,0.2983277,113470.0,113460.0,1.27507743]
[1754187114066,0.58734073,113470.0,113460.0,1.27507743]
[1754187114270,0.58734073,113470.0,113460.0,0.9860644]
[1754187114569,0.58734073,113470.0,113460.0,1.27507743]
[1754187114866,0.2983277,113470.0,113460.0,1.27507743]
[1754187115068,0.2983277,113470.0,113460.0,0.9860644]
[1754187115268,0.2983277,113470.0,113460.0,1.27507743]
[1754187116064,0.2963277,113470.0,113460.0,1.27507743]
[1754187116663,0.58534073,113470.0,113460.0,1.28379199]
[1754187117172,0.2963277,113470.0,113460.0,0.99477896]
[1754187117672,0.2963277,113470.0,113460.0,1.28379199]
[1754187117972,0.2963277,113470.0,113460.0,1.27507743]
[1754187119467,0.2963277,113470.0,113460.0,1.56409046]
[1754187119971,0.2963277,113470.0,113460.0,1.27507743]
[1754187129980,0.2963277,113470.0,113460.0,1.56409046]
[1754187131684,0.57274073,113470.0,113460.0,1.27507743]
[1754187131882,0.58627073,113470.0,113460.0,1.27507743]
[1754187132984,0.2972577,113470.0,113460.0,1.27507743]
[1754187133178,0.58627073,113470.0,113460.0,1.27507743]
[1754187133587,0.58627073,113470.0,113460.0,0.9860644]
[1754187133785,0.2972577,113470.0,113460.0,1.27507743]
[1754187134779,0.58627073,113470.0,113460.0,1.27507743]
[1754187135586,0.2972577,113470.0,113460.0,1.27507743]
[1754187135789,0.58627073,113470.0,113460.0,1.27507743]
[1754187135987,0.2972577,113470.0,113460.0,1.27507743]
[1754187136393,0.58627073,113470.0,113460.0,1.27507743]
[1754187136889,0.58627073,113470.0,113450.0,0.05308331]
[1754187136890,0.2235332,113460.0,113450.0,0.3085579]
[1754187137191,0.58335623,113460.0,113450.0,0.50940913]
[1754187137603,0.2943432,113460.0,113450.0,0.50940913]
[1754187138193,0.2943432,113460.0,113450.0,0.2203961]
[1754187138393,0.2943432,113460.0,113450.0,0.50940913]
[1754187138712,0.2943432,113460.0,113450.0,0.87020913]
[1754187139003,0.2943432,113460.0,113450.0,0.87120913]
[1754187139906,0.2943432,113460.0,113450.0,0.87986291]
[1754187141605,0.1045,113460.0,113450.0,0.87986291]
[1754187141797,0.02263,113460.0,113450.0,0.87986291]
[1754187142897,0.1989433,113460.0,113450.0,0.87986291]
[1754187143508,0.1989433,113460.0,113450.0,0.59084988]
[1754187143700,0.1989433,113460.0,113450.0,0.87986291]
[1754187143900,0.1989433,113460.0,113450.0,0.87120913]
[1754187144612,0.1989433,113460.0,113450.0,0.5821961]
[1754187144801,0.1989433,113460.0,113450.0,0.87120913]
[1754187144996,0.02263,113460.0,113450.0,0.87120913]
[1754187145201,0.1989432,113460.0,113450.0,0.87120913]
[1754187146696,0.1989432,113460.0,113450.0,0.88019856]
[1754187147305,0.2247932,113460.0,113450.0,0.88019856]
[1754187147506,0.2729732,113460.0,113450.0,0.88019856]
[1754187148109,0.2943432,113460.0,113450.0,0.88019856]
[1754187151010,0.58335623,113460.0,113450.0,0.87120913]
[1754187151205,0.58335623,113460.0,113450.0,0.5821961]
[1754187151405,0.58335623,113460.0,113450.0,0.87120913]
[1754187153211,0.2943432,113460.0,113450.0,0.87120913]
[1754187153911,0.58335623,113460.0,113450.0,0.5821961]
[1754187154213,0.58335623,113460.0,113450.0,0.87120913]
[1754187156307,0.87236926,113460.0,113450.0,0.3618]
[1754187156510,1.23316926,113460.0,113450.0,0.001]
[1754187157412,1.23316926,113460.0,113450.0,0.1773287]
[1754187157607,1.23316926,113460.0,113450.0,0.1763287]
[1754187157806,0.94415623,113460.0,113450.0,0.1773287]
[1754187158507,0.94415623,113460.0,113450.0,0.1763287]
[1754187159014,0.2945086,113450.0,113440.0,0.6253032]
[1754187159316,0.58352163,113450.0,113440.0,0.91431623]
[1754187160415,0.58352163,113450.0,113440.0,0.91531623]
[1754187161515,0.247999,113450.0,113440.0,0.91531623]
[1754187161720,0.294509,113450.0,113440.0,0.91531623]
[1754187163917,0.294509,113450.0,113440.0,0.6263032]
[1754187164108,0.294509,113450.0,113440.0,0.91531623]
[1754187167412,0.36968839,113470.0,113440.0,0.73898443]
[1754187167619,0.2000532,113460.0,113450.0,0.669369]
[1754187167819,0.2000532,113460.0,113450.0,0.95838203]
[1754187168016,0.58350623,113460.0,113450.0,0.91430053]
[1754187168611,0.58350623,113460.0,113450.0,0.1763288]
[1754187170021,0.2944932,113460.0,113450.0,0.46534183]
[1754187170918,0.2944932,113460.0,113450.0,0.82614183]
[1754187171617,0.2944932,113460.0,113450.0,0.82714183]
[1754187172423,0.2944932,113460.0,113450.0,0.5381288]
[1754187172616,0.2944932,113460.0,113450.0,0.82714183]
[1754187172816,0.2944932,113460.0,113450.0,0.7947216]
[1754187173624,0.2944932,113460.0,113450.0,0.5381288]
[1754187173819,0.2944932,113460.0,113450.0,0.7947216]
[1754187178625,0.2000532,113460.0,113450.0,0.7947216]
[1754187179327,0.3394218,113480.0,113470.0,0.176282]
[1754187179524,0.36098293,113480.0,113470.0,0.176282]
[1754187180326,0.1762975,113470.0,113460.0,0.5811801]
[1754187180524,0.2466931,113460.0,113450.0,0.5381196]
[1754187180731,0.2953731,113460.0,113450.0,0.5381196]
[1754187181035,0.2953731,113460.0,113450.0,0.5371196]
[1754187182230,0.2953731,113460.0,113450.0,0.7937124]
[1754187182635,0.2953731,113460.0,113450.0,0.7957124]
[1754187183524,0.2953731,113460.0,113450.0,0.7937124]
[1754187183724,0.2953731,113460.0,113450.0,0.7947124]
[1754187186036,0.2953731,113460.0,113450.0,0.5381196]
[1754187188030,0.5519659,113460.0,113450.0,0.3618]
[1754187188336,0.5519659,113460.0,113450.0,0.001]
[1754187188830,0.5519659,113460.0,113450.0,0.1773287]
[1754187190234,0.5519659,113460.0,113450.0,0.1763287]
[1754187193940,0.2953731,113460.0,113450.0,0.1763287]
[1754187194132,0.5519659,113460.0,113450.0,0.1763287]
[1754187198634,0.2953731,113460.0,113450.0,0.1763287]
[1754187198837,0.2953731,113460.0,113450.0,0.7937215]
[1754187199544,0.2953731,113460.0,113450.0,0.4329215]
[1754187199735,0.2953731,113460.0,113450.0,0.7937215]
[1754187201633,0.2953731,113460.0,113450.0,0.5371287]
[1754187202941,0.5519659,113460.0,113450.0,0.5371287]
[1754187203641,0.2953731,113460.0,113450.0,0.5371287]
[1754187205442,0.2953731,113460.0,113450.0,0.7937215]
[1754187206242,0.2953731,113460.0,113450.0,0.5371287]
[1754187206442,0.2953731,113460.0,113450.0,0.7937215]
[1754187206844,0.2953731,113460.0,113450.0,0.5371287]
[1754187207043,0.2953731,113460.0,113450.0,0.7937215]
[1754187207238,0.0232,113460.0,113450.0,0.7937215]
[1754187207743,0.2253529,113460.0,113450.0,0.7937215]
[1754187207945,0.2740329,113460.0,113450.0,0.7937215]
[1754187208243,0.2953729,113460.0,113450.0,0.7937215]
[1754187210539,0.04904,113460.0,113450.0,0.7937215]
[1754187210739,0.0232,113460.0,113450.0,0.7937215]
[1754187212649,0.0232,113460.0,113450.0,0.5371287]
[1754187212948,0.0232,113460.0,113450.0,0.7937215]
[1754187217851,0.342011,113480.0,113470.0,0.1762976]
[1754187218051,0.342011,113480.0,113470.0,0.5370976]
[1754187220945,0.75246674,113490.0,113480.0,0.1762819]
[1754187221146,0.77384501,113490.0,113480.0,0.1762819]
[1754187221557,0.39166674,113490.0,113480.0,0.1762819]
[1754187221756,0.75246674,113490.0,113480.0,0.1762819]
[1754187222752,0.64825954,113490.0,113480.0,0.1762819]
[1754187222957,1.00905954,113490.0,113480.0,0.1762819]
[1754187223756,0.64825954,113490.0,113480.0,0.1762819]
[1754187223955,1.00905954,113490.0,113480.0,0.1762819]
[1754187224158,0.64825954,113490.0,113480.0,0.1762819]
[1754187224658,0.6696316,113490.0,113480.0,0.1762819]
[1754187224857,1.0304316,113490.0,113480.0,0.1762819]
[1754187226754,0.2630722,113480.0,113470.0,0.581157]
[1754187226958,0.57589706,113480.0,113470.0,0.581157]
[1754187227661,0.22130426,113480.0,113470.0,0.581157]
[1754187227859,0.30549426,113480.0,113470.0,0.8377498]
[1754187228067,0.57589706,113480.0,113470.0,0.220357]
[1754187228866,0.57589706,113480.0,113470.0,0.1762858]
[1754187229366,0.31930426,113480.0,113470.0,0.1762858]
[1754187229555,0.57589706,113480.0,113470.0,0.1762858]
[1754187231566,0.2979475,113470.0,113460.0,0.581176]
[1754187231768,0.2979631,113460.0,113450.0,0.6252802]
[1754187232061,0.5545559,113460.0,113450.0,0.6252802]
[1754187232568,0.2979631,113460.0,113450.0,0.6252802]
[1754187232967,0.2979631,113460.0,113450.0,0.881873]
[1754187233768,0.2979631,113460.0,113450.0,0.882873]
[1754187233957,0.2979631,113460.0,113450.0,0.6262802]
[1754187234159,0.2979631,113460.0,113450.0,0.881873]
[1754187235463,0.2979631,113460.0,113450.0,0.89048387]
[1754187235766,0.2979631,113460.0,113450.0,0.89148387]
[1754187235961,0.2841374,113470.0,113460.0,0.3085416]
[1754187236168,0.2979474,113470.0,113460.0,0.9259344]
[1754187237365,0.2989474,113470.0,113460.0,0.9259344]
[1754187237769,0.2989474,113470.0,113460.0,0.6693416]
[1754187239367,0.2979474,113470.0,113460.0,0.6703416]
[1754187240667,0.2979474,113470.0,113460.0,0.626264]
[1754187242061,0.56346267,113470.0,113460.0,0.626264]
[1754187242371,0.56446267,113470.0,113460.0,0.625264]
[1754187243172,0.30786987,113470.0,113460.0,0.581188]
[1754187243766,0.2989474,113470.0,113460.0,0.581188]
[1754187244674,0.2014675,113470.0,113460.0,0.8377808]
[1754187246673,0.2960175,113470.0,113460.0,0.8377808]
[1754187246877,0.2950175,113470.0,113460.0,0.8377808]
[1754187247074,0.2950175,113470.0,113460.0,0.8387808]
[1754187247674,0.5516103,113470.0,113460.0,0.582188]
[1754187248372,0.2950175,113470.0,113460.0,0.582188]
[1754187252377,0.5516103,113470.0,113460.0,0.582188]
[1754187252579,0.2950175,113470.0,113460.0,0.582188]
[1754187254985,0.2004675,113470.0,113460.0,0.582188]
[1754187255185,0.2950175,113470.0,113460.0,0.582188]
[1754187256587,0.2960175,113470.0,113460.0,0.581188]
[1754187256992,0.2960175,113470.0,113460.0,0.8377808]
[1754187257489,0.2950175,113470.0,113460.0,0.581188]
[1754187257692,0.2950175,113470.0,113460.0,0.582188]
[1754187260091,0.2707308,113480.0,113470.0,0.1762975]
[1754187260296,0.3390808,113480.0,113470.0,0.5370975]
[1754187261890,0.3400808,113480.0,113470.0,0.5370975]
[1754187268097,0.3258408,113480.0,113470.0,0.5370975]
[1754187268300,0.3400808,113480.0,113470.0,0.5370975]
[1754187268999,0.2960088,113480.0,113470.0,0.5370975]
[1754187270803,0.11972,113480.0,113470.0,0.5370975]
[1754187271002,0.07287,113480.0,113470.0,0.7936903]
[1754187271304,0.12091,113480.0,113470.0,0.7936903]
[1754187271708,0.12091,113480.0,113470.0,0.5370975]
[1754187275205,0.12091,113480.0,113470.0,0.60703072]
[1754187283013,0.40950451,113480.0,113470.0,0.89562523]
[1754187284408,0.40850451,113480.0,113470.0,0.89662523]
[1754187286722,0.11991,113480.0,113470.0,0.89662523]
[1754187286916,0.40850451,113480.0,113470.0,0.89662523]
[1754187290124,0.40850451,113480.0,113470.0,0.89562523]
[1754187291925,0.11991,113480.0,113470.0,0.89562523]
[1754187292121,0.40850451,113480.0,113470.0,0.89562523]
[1754187295330,0.40850451,113480.0,113470.0,0.60703072]
[1754187295533,0.58478671,113480.0,113470.0,0.89562523]
[1754187295832,0.58478671,113480.0,113470.0,0.24623072]
[1754187297132,0.2961922,113480.0,113470.0,0.24623072]
[1754187297327,0.58478671,113480.0,113470.0,0.24623072]
[1754187297534,0.58478671,113480.0,113470.0,0.1762975]
[1754187300334,0.94558671,113480.0,113470.0,0.1762975]
[1754187301237,0.6569922,113480.0,113470.0,0.1762975]
[1754187301443,0.94558671,113480.0,113470.0,0.1762975]
[1754187301633,0.2708678,113470.0,113460.0,0.1763044]
[1754187301940,0.58420231,113470.0,113460.0,0.1763044]
[1754187302435,0.2956078,113470.0,113460.0,0.46489891]
[1754187302640,0.58420221,113470.0,113460.0,0.82569891]
[1754187302833,0.40790451,113470.0,113460.0,0.82569891]
[1754187303438,0.12431,113470.0,113460.0,0.82569891]
[1754187303633,0.02974,113470.0,113460.0,0.82569891]
[1754187304035,0.02474,113470.0,113460.0,0.82569891]
[1754187304238,0.12331,113470.0,113460.0,0.82569891]
[1754187304941,0.11931,113470.0,113460.0,0.5371044]
[1754187305142,0.55617923,113470.0,113460.0,0.1763044]
[1754187306840,0.56477176,113470.0,113460.0,0.1763044]
[1754187307444,0.55217923,113470.0,113460.0,0.1763044]
[1754187307639,0.3006077,113470.0,113460.0,0.1763044]
[1754187307944,0.55717923,113470.0,113460.0,0.1763044]
[1754187309039,0.1763135,113460.0,113450.0,0.5371212]
[1754187309246,0.55219503,113460.0,113450.0,0.1763212]
[1754187310748,0.55419503,113460.0,113450.0,0.1763212]
[1754187319253,0.223649,113450.0,113440.0,0.6693861]
[1754187319450,0.55221053,113450.0,113440.0,0.6693861]
[1754187321057,0.55521053,113450.0,113440.0,0.6693861]
[1754187321752,0.55221053,113450.0,113440.0,0.6693861]
[1754187321945,0.55521053,113450.0,113440.0,0.6693861]
[1754187322658,0.55621053,113450.0,113440.0,0.6693861]
[1754187323150,0.299639,113450.0,113440.0,0.6693861]
[1754187323456,0.55621053,113450.0,113440.0,0.6693861]
[1754187326061,0.299639,113450.0,113440.0,0.6693861]
[1754187326757,0.58840006,113450.0,113440.0,0.95814716]
[1754187327062,0.58840006,113450.0,113440.0,0.6693861]
[1754187327362,0.58840006,113450.0,113440.0,0.95814716]
[1754187328364,0.58840006,113450.0,113440.0,0.6693861]
[1754187329366,0.58840006,113450.0,113440.0,0.6253014]
[1754187330065,0.58840006,113450.0,113440.0,0.1763328]
[1754187330866,0.55638453,113450.0,113440.0,0.1763328]
[1754187331769,0.299639,113450.0,113440.0,0.1763328]
[1754187331968,0.55638453,113450.0,113440.0,0.1763328]
[1754187335167,0.299639,113450.0,113440.0,0.1763328]
[1754187335367,0.55638453,113450.0,113440.0,0.1763328]
[1754187335563,0.12331,113450.0,113440.0,0.1763328]
[1754187335768,0.07606,113450.0,113440.0,0.79387833]
[1754187335963,0.004,113450.0,113440.0,0.79387833]
[1754187336163,0.02896,113450.0,113440.0,0.79387833]
[1754187337266,0.02796,113450.0,113440.0,0.79387833]
[1754187339264,0.02496,113450.0,113440.0,0.79387833]
[1754187339471,0.02796,113450.0,113440.0,0.79387833]
[1754187341370,0.204289,113450.0,113440.0,0.5371328]
[1754187341572,0.204289,113450.0,113440.0,0.79387833]
[1754187342774,0.250659,113450.0,113440.0,0.79387833]
[1754187343072,0.298449,113450.0,113440.0,0.79387833]
[1754187345075,0.298449,113450.0,113440.0,0.5371328]
[1754187348978,0.12212,113450.0,113440.0,0.79387833]
[1754187349477,0.12212,113450.0,113440.0,0.5371328]
[1754187349676,0.12212,113450.0,113440.0,0.79387833]
[1754187350177,0.12212,113450.0,113440.0,0.5371328]
[1754187351068,0.02796,113450.0,113440.0,0.79387833]
[1754187351880,0.0532,113450.0,113440.0,0.79387833]
[1754187352179,0.10099,113450.0,113440.0,0.79387833]
[1754187352380,0.09799,113450.0,113440.0,0.79387833]
[1754187352682,0.12112,113450.0,113440.0,0.79387833]
[1754187353182,0.11912,113450.0,113440.0,0.79387833]
[1754187353380,0.12112,113450.0,113440.0,0.79387833]
[1754187354070,0.07333,113450.0,113440.0,0.79387833]
[1754187354274,0.2974491,113450.0,113440.0,0.5371328]
[1754187355580,0.2954491,113450.0,113440.0,0.5371328]
[1754187355789,0.2974491,113450.0,113440.0,0.5371328]
[1754187356982,0.2984491,113450.0,113440.0,0.5371328]
[1754187360885,0.12212,113450.0,113440.0,0.5371328]
[1754187361187,0.2506589,113450.0,113440.0,0.79387833]
[1754187361683,0.2826289,113450.0,113440.0,0.5371328]
[1754187361983,0.2972289,113450.0,113440.0,0.5371328]
[1754187362188,0.2962289,113450.0,113440.0,0.79387833]
[1754187363286,0.2962289,113450.0,113440.0,0.5371328]
[1754187365087,0.2972289,113450.0,113440.0,0.5371328]
[1754187365882,0.02796,113450.0,113440.0,0.5371328]
[1754187366188,0.02796,113450.0,113440.0,0.79387833]
[1754187368389,0.02696,113450.0,113440.0,0.79387833]
[1754187368689,0.05893,113450.0,113440.0,0.79387833]
[1754187369589,0.2352591,113450.0,113440.0,0.79387833]
[1754187369987,0.2342591,113450.0,113440.0,0.79387833]
[1754187370182,0.05793,113450.0,113440.0,0.79387833]
[1754187370394,0.001,113450.0,113440.0,1.22691986]
[1754187370587,0.001,113450.0,113440.0,1.22791986]
[1754187370901,0.001,113450.0,113440.0,1.00303277]
[1754187371785,0.2005992,113470.0,113460.0,0.1763135]
[1754187371985,0.2005992,113470.0,113460.0,0.82571747]
[1754187372492,0.0243,113470.0,113460.0,0.82571747]
[1754187372889,0.0243,113470.0,113460.0,0.7936481]
[1754187374499,0.0243,113480.0,113470.0,0.1762979]
[1754187374702,0.0243,113480.0,113470.0,0.7936325]
[1754187375495,0.0263,113480.0,113470.0,0.7936325]
[1754187376203,0.0263,113480.0,113470.0,0.80241407]
[1754187376701,0.0263,113480.0,113470.0,0.54587947]
[1754187377803,0.2025824,113480.0,113470.0,0.54587947]
[1754187378796,0.2978324,113480.0,113470.0,0.54587947]
[1754187379201,0.2978324,113480.0,113470.0,0.61514312]
[1754187383402,0.2978324,113480.0,113470.0,0.60636155]
[1754187383900,0.2832324,113480.0,113470.0,0.60636155]
[1754187384208,0.2978324,113480.0,113470.0,0.60636155]
[1754187384508,0.2978324,113480.0,113470.0,0.61507877]